bitfinex/quotes_SOLUSD_20250822
["timestamp","ask_amount","ask_price","bid_price","bid_amount"]
[1755905548868,0.1,200.2,200.19,9.53687641]
[1755905549062,0.1,200.2,200.19,23.68687889]
[1755905549372,0.1,200.2,200.19,17.75804636]
[1755905549574,0.1,200.2,200.19,23.68687889]
[1755905549766,0.1,200.2,200.19,23.12687889]
[1755905550258,0.1,200.2,200.19,19.52442654]
[1755905550461,0.1,200.2,200.16,1.999151]
[1755905550659,0.1,200.2,200.14,13.59559401]
[1755905550883,0.1,200.2,200.19,5.92883253]
[1755905551260,0.77,200.2,200.19,5.92883253]
[1755905551664,0.77,200.2,200.06,0.14216157]
[1755905551996,0.77,200.2,200.17,5.92883253]
[1755905552172,0.67,200.19,200.14,5.92883253]
[1755905552492,0.67,200.18,200.14,5.92883253]
[1755905552699,0.67,200.17,200.12,5.92883253]
[1755905552901,5.92883253,200.18,200.12,5.92883253]
[1755905553107,0.67,200.16,200.11,5.92883253]
[1755905553471,0.1,200.2,200.11,5.92883253]
[1755905553800,6.59883253,200.18,200.12,5.92883253]
[1755905553987,0.67,200.17,200.12,5.92883253]
[1755905554192,0.67,200.16,200.12,5.92883253]
[1755905555403,0.67,200.15,200.09,13.59559401]
[1755905555618,0.1,200.2,200.15,13.59559401]
[1755905555904,0.06,200.21,200.2,19.52442654]
[1755905556284,0.06,200.21,200.2,19.98442654]
[1755905556667,0.06,200.21,200.2,21.98407654]
[1755905556871,0.06,200.21,200.2,19.98442654]
[1755905558382,0.06,200.21,200.2,13.59559401]
[1755905558595,0.06,200.21,200.2,19.52442654]
[1755905559412,0.06,200.21,200.2,19.98442654]
[1755905561396,0.06,200.21,200.2,19.52442654]
[1755905562133,0.06,200.21,200.2,19.98442654]
[1755905564012,0.06,200.21,200.2,19.52442654]
[1755905564813,0.06,200.21,200.2,19.98442654]
[1755905566595,0.06,200.21,200.2,19.52442654]
[1755905567323,0.06,200.21,200.2,19.98442654]
[1755905568003,0.06,200.21,200.2,19.52442654]
[1755905568381,0.06,200.21,200.2,23.10600182]
[1755905569407,0.06,200.21,200.2,19.52442654]
[1755905569634,0.06,200.21,200.2,23.10918743]
[1755905573899,0.06,200.21,200.2,23.10918743]
[1755905574621,0.06,200.21,200.2,23.12886787]
[1755905575523,0.06,200.21,200.2,17.20003534]
[1755905575724,0.06,200.21,200.2,23.12886787]
[1755905577697,0.06,200.21,200.2,19.52442654]
[1755905580204,0.74,200.21,200.17,1.998951]
[1755905580415,3.59761582,200.2,200.17,1.998951]
[1755905580615,4.27761582,200.19,200.17,1.998951]
[1755905580909,0.06,200.21,200.16,0.03]
[1755905580910,4.27761582,200.18,200.16,0.03]
[1755905581228,4.27761582,200.17,200.16,0.03]
[1755905581406,0.68,200.17,200.16,0.03]
[1755905587910,6.58643692,200.17,200.16,0.03]
[1755905588424,0.68,200.17,200.16,0.03]
[1755905591766,6.58643692,200.17,200.16,0.03]
[1755905592448,0.68,200.17,200.16,0.03]
[1755905592836,6.58643692,200.17,200.16,0.03]
[1755905594264,6.87076006,200.17,200.16,0.03]
[1755905594739,13.87991715,200.16,200.11,0.03]
[1755905594943,6.19076006,200.12,200.11,0.03]
[1755905595338,46.35076006,200.12,200.11,0.03]
[1755905596853,0.06,200.25,200.11,6.60643692]
[1755905596854,39.46,200.15,200.11,6.60643692]
[1755905597045,39.46,200.15,200.12,6.57643692]
[1755905597938,39.46,200.15,200.14,5.90643692]
[1755905598140,39.46,200.15,200.14,6.57643692]
[1755905599064,39.46,200.15,200.14,5.90643692]
[1755905599858,39.46,200.15,200.12,0.67]
[1755905600054,39.46,200.15,200.14,5.90643692]
[1755905600664,39.46,200.15,200.14,6.57643692]
[1755905602268,39.46,200.15,200.14,0.67]
[1755905602770,39.46,200.15,200.14,6.57643692]
[1755905604058,0.06,200.18,200.14,6.57643692]
[1755905604359,0.06,200.18,200.17,3.59778792]
[1755905604536,0.06,200.18,200.15,0.67]
[1755905604737,0.06,200.18,200.16,3.59778792]
[1755905608130,0.06,200.18,200.17,3.49207391]
[1755905608366,0.06,200.18,200.16,3.59778792]
[1755905608548,0.06,200.18,200.17,3.49207391]
[1755905609061,0.06,200.18,200.15,3.59778792]
[1755905609249,0.06,200.18,200.16,3.49207391]
[1755905609448,0.06,200.18,200.17,3.49207391]
[1755905609667,0.06,200.18,200.16,3.49207391]
[1755905609856,0.06,200.18,200.15,3.59778792]
[1755905610165,0.06,200.18,200.16,3.49345236]
[1755905610348,0.06,200.18,200.17,3.49345236]
[1755905610662,0.06,200.18,200.16,3.49345236]
[1755905610957,0.06,200.18,200.15,3.59778792]
[1755905611162,0.06,200.18,200.13,0.67]
[1755905611358,0.78,200.18,200.14,7.78315752]
[1755905611544,0.78,200.18,200.15,3.4953696]
[1755905611751,0.78,200.18,200.14,4.28778792]
[1755905611950,0.78,200.18,200.15,3.49591237]
[1755905612151,0.78,200.18,200.14,4.28778792]
[1755905612350,0.78,200.18,200.15,3.4960168]
[1755905612565,0.78,200.18,200.14,4.28778792]
[1755905612862,0.78,200.18,200.15,3.49651368]
[1755905613068,0.06,200.18,200.14,4.28778792]
[1755905613364,0.72,200.17,200.15,3.49665261]
[1755905613544,3.65778792,200.18,200.12,3.59778792]
[1755905613746,0.72,200.17,200.13,3.49777213]
[1755905613947,0.72,200.17,200.14,3.49777213]
[1755905614142,0.06,200.18,200.13,0.69]
[1755905614459,4.37778792,200.18,200.14,3.49781321]
[1755905614642,0.72,200.17,200.13,0.69]
[1755905614842,0.72,200.17,200.14,3.49849284]
[1755905615040,0.72,200.17,200.13,0.69]
[1755905615280,0.72,200.17,200.14,3.49849284]
[1755905615482,0.72,200.17,200.15,3.49967997]
[1755905615776,0.06,200.18,200.16,3.49949768]
[1755905615981,0.06,200.18,200.15,0.69]
[1755905616178,0.06,200.18,200.16,3.49779911]
[1755905616484,0.06,200.18,200.17,3.49779911]
[1755905616778,0.06,200.18,200.15,0.69]
[1755905616942,0.06,200.18,200.16,3.4987913]
[1755905617138,0.06,200.18,200.15,0.69]
[1755905617342,0.06,200.18,200.16,3.4987913]
[1755905617575,0.06,200.18,200.15,0.69]
[1755905617774,0.06,200.18,200.16,3.49960194]
[1755905617976,0.06,200.18,200.17,3.49960194]
[1755905619066,0.06,200.18,200.15,0.69]
[1755905619251,0.06,200.18,200.16,3.50046011]
[1755905619446,0.06,200.18,200.17,4.19046011]
[1755905619651,0.06,200.18,200.17,7.78824803]
[1755905619857,0.06,200.18,200.17,4.19046011]
[1755905621350,0.06,200.18,200.17,7.78824803]
[1755905622184,0.06,200.18,200.17,7.81929369]
[1755905623157,0.06,200.18,200.17,17.81709978]
[1755905623368,0.06,200.18,200.17,7.81929369]
[1755905623745,0.06,200.18,200.17,4.22150577]
[1755905624151,0.06,200.18,200.17,3.53150577]
[1755905624867,0.06,200.18,200.17,4.22150577]
[1755905627581,0.06,200.18,200.17,3.53150577]
[1755905628476,0.06,200.18,200.17,3.53624492]
[1755905628662,0.78,200.18,200.17,3.53624492]
[1755905629375,4.37778792,200.18,200.17,3.53624492]
[1755905630584,4.37778792,200.18,200.17,3.53720136]
[1755905630873,4.37778792,200.18,200.17,3.53792649]
[1755905632378,0.06,200.18,200.17,3.53792649]
[1755905632557,3.65778792,200.18,200.17,3.53792649]
[1755905634195,0.06,200.18,200.17,3.53792649]
[1755905637274,0.06,200.18,200.16,0.03]
[1755905637595,0.06,200.18,200.17,3.72430512]
[1755905638098,0.06,200.18,200.17,3.72439643]
[1755905639268,0.77,200.18,200.17,3.72439643]
[1755905639463,0.06,200.18,200.17,3.72439643]
[1755905640283,30.65211106,200.18,200.17,3.72439643]
[1755905640590,30.65211106,200.18,200.16,0.03]
[1755905640798,4.59211106,200.17,200.16,0.03]
[1755905641096,4.59211106,200.17,200.16,3.75643922]
[1755905642376,4.59211106,200.17,200.16,0.03]
[1755905645797,43.79211106,200.17,200.16,0.03]
[1755905646977,26.0,200.14,200.13,0.03]
[1755905647167,26.0,200.14,200.11,0.03]
[1755905647168,82.67770507,200.14,200.11,0.03]
[1755905647507,0.28432314,200.08,200.06,0.03]
[1755905647668,46.67989898,200.07,200.06,0.03]
[1755905647996,47.38989898,200.07,200.06,0.03]
[1755905649294,8.18989898,200.07,200.06,0.03]
[1755905649590,47.40989898,200.07,200.06,0.03]
[1755905651573,61.00549299,200.07,200.06,0.03]
[1755905651777,13.87991715,200.06,199.98,0.7]
[1755905652000,0.28432314,200.04,199.99,3.71099602]
[1755905652299,65.93,200.03,199.98,0.7]
[1755905652493,65.22,200.03,199.99,3.70838784]
[1755905652689,0.71,200.02,199.98,0.7]
[1755905652875,0.71,200.02,199.99,3.7083919]
[1755905653076,3.59778792,200.0,199.96,0.7]
[1755905653278,39.22,199.99,199.97,4.40840532]
[1755905653494,39.22,199.99,199.98,3.70840532]
[1755905654382,42.81778792,199.99,199.98,3.70594743]
[1755905654583,3.59778792,199.99,199.97,0.7]
[1755905654785,42.79778792,199.99,199.98,3.70594743]
[1755905655109,42.79778792,199.99,199.98,3.70418584]
[1755905655893,42.79778792,199.99,199.98,4.40418584]
[1755905656395,42.79778792,199.99,199.98,0.7]
[1755905659495,42.79778792,199.99,199.97,0.7]
[1755905659719,3.59778792,199.98,199.95,0.2]
[1755905659881,3.59778792,199.96,199.95,0.9]
[1755905660077,3.88211106,199.96,199.95,3.89806669]
[1755905661108,3.88211106,199.96,199.95,0.2]
[1755905663588,0.28432314,199.96,199.95,0.2]
[1755905663803,3.88211106,199.96,199.95,0.2]
[1755905664115,134.4,200.09,199.95,8.19095551]
[1755905664116,0.71,200.04,199.95,8.19095551]
[1755905664294,3.59778792,200.02,199.96,4.39316759]
[1755905664609,0.28432314,200.0,199.97,4.39316759]
[1755905664810,39.18,199.99,199.98,0.7]
[1755905665680,39.18,199.99,199.98,4.3911025]
[1755905667989,39.18,199.99,199.98,0.7]
[1755905668191,39.18,199.99,199.98,4.3925615]
[1755905671098,39.18,199.99,199.98,7.99034942]
[1755905671297,2.001952,200.04,199.98,7.99034942]
[1755905671511,2.001952,200.04,199.95,13.79559401]
[1755905671512,2.001952,200.04,200.03,3.59778792]
[1755905671698,39.18,200.04,200.03,8.00034942]
[1755905672616,39.18,200.04,200.03,8.00248579]
[1755905673527,0.06,200.09,200.03,8.00248579]
[1755905673707,39.18,200.08,200.07,3.59778792]
[1755905674020,39.18,200.08,200.07,8.00248579]
[1755905674617,39.18,200.08,200.07,4.40469787]
[1755905675415,39.18,200.08,200.07,8.00248579]
[1755905675629,39.18,200.08,200.07,8.00490157]
[1755905676696,39.18,200.08,200.07,4.40711365]
[1755905677496,39.24,200.09,200.07,8.00490157]
[1755905677695,39.24,200.09,200.08,8.00490157]
[1755905677903,0.06,200.09,200.08,8.00490157]
[1755905678101,0.06,200.11,200.08,8.00490157]
[1755905678316,0.06,200.11,200.1,3.59778792]
[1755905678623,0.06,200.11,200.1,7.29490157]
[1755905678804,0.06,200.11,200.1,8.00490157]
[1755905680927,43.54778792,200.11,200.1,3.69711365]
[1755905681605,43.54778792,200.11,200.05,0.71]
[1755905681802,3.59778792,200.1,200.06,3.7000315]
[1755905682015,3.59778792,200.1,200.07,3.7000315]
[1755905682210,3.59778792,200.1,200.08,3.69979098]
[1755905682411,43.54778792,200.11,200.09,3.69979098]
[1755905682614,43.54778792,200.11,200.1,3.69979098]
[1755905683431,43.54778792,200.11,200.06,0.71]
[1755905683640,3.59778792,200.1,200.07,3.70315139]
[1755905683814,3.59778792,200.1,200.08,3.70315139]
[1755905684128,39.95,200.11,200.09,3.70315139]
[1755905684129,43.54778792,200.11,200.09,3.70315139]
[1755905684324,43.54778792,200.11,200.06,0.71]
[1755905684628,43.54778792,200.11,200.07,3.7041307]
[1755905684803,43.54778792,200.11,200.08,3.70442983]
[1755905685003,43.54778792,200.11,200.09,3.70442983]
[1755905685225,43.54778792,200.11,200.06,0.71]
[1755905685425,43.54778792,200.11,200.07,3.70468613]
[1755905685729,43.54778792,200.11,200.08,3.70468613]
[1755905686024,43.54778792,200.11,200.09,3.70468613]
[1755905686219,42.83778792,200.11,200.07,26.0]
[1755905686528,42.83778792,200.11,200.08,3.7043265]
[1755905686730,42.83778792,200.11,200.09,3.7043265]
[1755905686934,42.83778792,200.11,200.07,0.71]
[1755905687233,42.83778792,200.11,200.08,3.70449145]
[1755905687431,42.83778792,200.11,200.09,3.70449145]
[1755905687618,42.83778792,200.11,200.1,3.70449145]
[1755905688009,39.24,200.11,200.1,3.70449145]
[1755905688914,39.24,200.11,200.08,0.71]
[1755905689120,39.24,200.11,200.09,3.70499784]
[1755905689420,39.24,200.11,200.1,3.70510459]
[1755905689816,39.24,200.11,200.08,0.71]
[1755905690024,39.24,200.11,200.05,3.59778792]
[1755905690025,39.95,200.11,200.09,3.70525485]
[1755905690216,39.95,200.11,200.06,0.71]
[1755905690416,39.95,200.11,200.07,3.70526826]
[1755905690602,43.54778792,200.11,200.07,3.70526826]
[1755905690806,4.30778792,200.1,200.08,3.70586563]
[1755905691005,4.30778792,200.1,200.09,3.70586563]
[1755905691429,4.30778792,200.1,200.09,3.70595337]
[1755905691630,3.59778792,200.1,200.09,3.70595337]
[1755905692032,4.30778792,200.1,200.09,3.70595337]
[1755905692212,4.30778792,200.1,200.04,3.62778792]
[1755905692412,3.59778792,200.1,200.05,4.41623162]
[1755905692621,3.59778792,200.1,200.06,4.41623162]
[1755905692818,3.59778792,200.1,200.07,3.70623162]
[1755905693113,3.59778792,200.1,200.08,3.70623162]
[1755905693330,3.59778792,200.1,200.06,0.71]
[1755905693507,3.59778792,200.1,200.07,3.7062855]
[1755905693708,3.59778792,200.1,200.08,3.7062855]
[1755905693924,3.59778792,200.1,200.06,0.71]
[1755905694124,3.59778792,200.1,200.07,3.70607651]
[1755905694324,3.59778792,200.09,200.08,3.70607651]
[1755905694835,4.30778792,200.1,200.08,3.70607651]
[1755905695013,4.30778792,200.1,200.05,0.71]
[1755905695338,4.30778792,200.1,200.06,4.41598282]
[1755905695541,4.30778792,200.1,200.07,3.70598282]
[1755905695725,4.30778792,200.1,200.08,3.70598282]
[1755905696028,4.30778792,200.1,200.04,4.33778792]
[1755905696232,4.30778792,200.1,200.05,3.705755]
[1755905696441,4.30778792,200.1,200.06,3.705755]
[1755905696613,4.30778792,200.1,200.07,3.705755]
[1755905696812,4.30778792,200.1,200.08,3.705755]
[1755905697131,3.59778792,200.1,200.05,0.71]
[1755905697307,3.59778792,200.1,200.06,4.4154387]
[1755905697628,3.59778792,200.1,200.04,3.62778792]
[1755905697629,3.59778792,200.1,200.07,4.4154387]
[1755905697833,3.59778792,200.1,200.08,3.7054387]
[1755905698034,3.59778792,200.1,200.07,0.71]
[1755905698242,3.59778792,200.1,200.08,3.70560462]
[1755905698552,39.16,200.09,200.07,0.71]
[1755905698724,39.16,200.09,200.08,3.70581601]
[1755905699919,39.16,200.09,200.07,0.71]
[1755905700111,39.16,200.09,200.08,3.70599227]
[1755905700308,43.74211106,200.09,200.08,3.70599227]
[1755905700510,40.14432314,200.09,200.06,0.03]
[1755905700820,3.59778792,200.07,200.06,0.03]
[1755905702222,39.44432314,200.09,200.06,0.74]
[1755905702538,43.04211106,200.09,200.06,0.74]
[1755905702737,43.04211106,200.09,200.06,0.03]
[1755905702939,39.44432314,200.09,200.06,0.03]
[1755905703120,3.59778792,200.08,200.06,0.03]
[1755905703849,43.04211106,200.09,200.07,0.71]
[1755905704035,43.04211106,200.09,200.06,0.03]
[1755905704935,3.59778792,200.08,200.06,0.03]
[1755905705135,4.29778792,200.08,200.06,0.03]
[1755905705446,4.29778792,200.08,200.07,3.71058876]
[1755905705626,4.29778792,200.08,200.06,0.03]
[1755905705828,4.58211106,200.07,200.06,0.03]
[1755905706145,44.17770507,200.07,200.06,0.03]
[1755905706347,46.17955607,200.07,200.06,0.03]
[1755905708753,85.33955607,200.07,200.06,0.03]
[1755905709048,88.93734399,200.07,200.06,0.03]
[1755905713857,2.001851,200.07,200.06,0.74]
[1755905714035,41.44617414,200.07,200.06,0.74]
[1755905714355,45.04396206,200.07,200.06,4.45592332]
[1755905714531,39.16,200.07,200.06,4.45592332]
[1755905714729,0.06,200.11,200.06,8.05371124]
[1755905714926,3.59778792,200.09,200.07,4.42592332]
[1755905715142,39.16,200.08,200.07,0.71]
[1755905715340,39.16,200.08,200.07,4.42494627]
[1755905716538,43.04211106,200.08,200.07,3.71494627]
[1755905716847,0.28432314,200.07,200.06,0.03]
[1755905717031,4.58211106,200.07,200.06,0.03]
[1755905717651,3.88211106,200.07,200.06,0.03]
[1755905718027,39.16,200.08,200.06,0.74]
[1755905718367,39.30216157,200.08,200.07,3.71583548]
[1755905718848,39.44432314,200.08,200.07,4.42583548]
[1755905720248,39.16,200.08,200.07,4.42583548]
[1755905720640,0.06,200.09,200.07,8.0236234]
[1755905720952,0.06,200.09,200.08,8.0236234]
[1755905721140,0.06,200.09,200.08,7.3136234]
[1755905721338,0.06,200.09,200.08,8.0236234]
[1755905721861,3.94211106,200.09,200.08,3.71583548]
[1755905722230,0.34432314,200.09,200.08,4.42583548]
[1755905722431,0.34432314,200.09,200.08,3.71583548]
[1755905722841,0.34432314,200.09,200.08,4.42583548]
[1755905723867,0.06,200.09,200.08,4.42583548]
[1755905724168,0.06,200.09,200.08,8.0236234]
[1755905724539,0.06,200.09,200.08,3.71583548]
[1755905724743,0.06,200.09,200.08,4.42583548]
[1755905725157,0.06,200.09,200.08,8.0236234]
[1755905726032,0.06,200.09,200.08,4.30778792]
[1755905726256,0.06,200.09,200.08,8.02362686]
[1755905726839,0.06,200.09,200.08,4.30778792]
[1755905727055,0.06,200.09,200.08,8.02340709]
[1755905733468,0.06,200.09,200.08,7.31340709]
[1755905734061,0.06,200.09,200.08,3.71561917]
[1755905735253,0.06,200.09,200.08,3.71431054]
[1755905736064,0.06,200.09,200.08,3.71470802]
[1755905737147,4.62211106,200.09,200.08,3.71470802]
[1755905737368,0.06,200.09,200.08,3.71470802]
[1755905739670,0.54,200.09,200.08,3.71470802]
[1755905740249,0.06,200.09,200.08,3.71470802]
[1755905740871,0.54,200.09,200.08,3.71470802]
[1755905741056,4.42211106,200.09,200.08,3.71470802]
[1755905741256,4.42211106,200.09,200.07,0.03]
[1755905741461,43.50211106,200.08,200.07,0.03]
[1755905743360,39.42432314,200.08,200.07,0.03]
[1755905743546,39.42432314,200.08,200.07,3.74620382]
[1755905744371,39.42432314,200.08,200.07,3.74602029]
[1755905745162,39.14,200.08,200.07,4.43614548]
[1755905745370,39.14,200.08,200.07,8.0339334]
[1755905745554,39.14,200.08,200.07,4.43614548]
[1755905745755,39.14,200.08,200.07,8.0339334]
[1755905746856,39.14,200.08,200.07,3.74614548]
[1755905747372,39.14,200.08,200.07,4.4356307]
[1755905747576,39.14,200.08,200.07,8.03341862]
[1755905748578,39.14,200.08,200.07,3.7456307]
[1755905748579,39.82,200.08,200.07,3.7456307]
[1755905749158,39.14,200.08,200.07,8.03341862]
[1755905749789,39.14,200.08,200.07,3.7456307]
[1755905750169,39.14,200.08,200.07,7.34341862]
[1755905750370,39.14,200.08,200.07,8.03341862]
[1755905750977,39.14,200.08,200.07,3.7456307]
[1755905751655,39.82,200.08,200.07,3.7456307]
[1755905752759,43.70211106,200.08,200.07,3.7456307]
[1755905753082,40.10432314,200.08,200.07,3.7456307]
[1755905753389,43.70211106,200.08,200.07,3.748145]
[1755905753690,43.70211106,200.08,200.07,0.03]
[1755905754179,0.96432314,200.08,200.07,3.74905523]
[1755905754385,43.70211106,200.08,200.07,3.74905523]
[1755905754769,43.70211106,200.08,200.07,0.03]
[1755905754957,40.10432314,200.08,200.07,0.03]
[1755905755980,43.70211106,200.08,200.07,0.03]
[1755905756164,43.70211106,200.08,200.07,3.75177806]
[1755905756364,40.10432314,200.08,200.07,3.75177806]
[1755905756564,39.42432314,200.08,200.07,3.75177806]
[1755905759074,43.70211106,200.08,200.07,3.75177806]
[1755905759288,43.70211106,200.08,200.07,3.75423]
[1755905760386,40.10432314,200.08,200.07,3.75423]
[1755905760566,39.14,200.08,200.07,3.75423]
[1755905760759,39.14,200.08,200.07,4.45423]
[1755905761160,39.14,200.08,200.07,3.75423]
[1755905761385,39.14,200.08,200.07,0.73]
[1755905761561,39.14,200.08,200.07,4.45272454]
[1755905761760,39.14,200.08,200.07,8.05051246]
[1755905761961,39.14,200.08,200.07,4.45272454]
[1755905762167,39.14,200.08,200.07,3.75272454]
[1755905765377,43.70211106,200.08,200.07,3.75272454]
[1755905765587,43.70211106,200.08,200.07,0.03]
[1755905765781,40.10432314,200.08,200.07,0.03]
[1755905765985,39.42432314,200.08,200.07,3.75465855]
[1755905767180,39.42432314,200.08,200.07,3.75348859]
[1755905769394,43.70211106,200.08,200.07,0.03]
[1755905770488,40.10432314,200.08,200.07,0.03]
[1755905770668,45.70376206,200.08,200.07,0.03]
[1755905772094,42.10597414,200.08,200.07,0.03]
[1755905772281,43.02211106,200.08,200.07,0.03]
[1755905772597,43.70211106,200.08,200.07,0.03]
[1755905775102,45.70376206,200.08,200.07,0.03]
[1755905777209,42.10597414,200.08,200.07,0.03]
[1755905777511,45.70376206,200.08,200.07,0.03]
[1755905779407,42.10597414,200.08,200.07,0.03]
[1755905779603,2.28597414,200.08,200.07,0.03]
[1755905779808,39.42432314,200.08,200.07,3.75431341]
[1755905780604,39.42432314,200.08,200.07,4.45431341]
[1755905781518,39.42432314,200.08,200.07,3.75431341]
[1755905781519,42.73778792,200.08,200.07,3.75431341]
[1755905781716,43.02211106,200.08,200.07,3.75431341]
[1755905782711,43.02211106,200.08,200.07,4.45431341]
[1755905782712,39.42432314,200.08,200.07,4.45431341]
[1755905782907,39.14,200.08,200.07,4.45431341]
[1755905784200,39.14,200.08,200.07,8.05210133]
[1755905784808,39.14,200.08,200.07,4.45431341]
[1755905786328,39.14,200.08,200.07,8.05210133]
[1755905788402,39.14,200.08,200.07,8.04948085]
[1755905789437,39.14,200.08,200.07,8.04975963]
[1755905792011,39.14,200.08,200.07,8.04907793]
[1755905796912,39.14,200.08,200.07,7.34907793]
[1755905797113,39.14,200.08,200.07,3.75129001]
[1755905797624,39.14,200.08,200.07,3.75121711]
[1755905797827,39.14,200.08,200.07,0.03]
[1755905798132,39.14,200.08,200.07,3.75111265]
[1755905798442,39.14,200.08,200.07,4.42111265]
[1755905806953,39.14,200.08,200.07,3.75372418]
[1755905807329,39.14,200.08,200.07,3.75367344]
[1755905808241,39.14,200.08,200.07,8.02146136]
[1755905811029,0.06,200.09,200.07,8.02146136]
[1755905811350,0.06,200.09,200.08,7.99146136]
[1755905811930,0.06,200.09,200.08,21.58705537]
[1755905813447,0.06,200.09,200.08,23.58710537]
[1755905815850,0.06,200.09,200.08,19.86343193]
[1755905816055,0.06,200.09,200.08,23.57516212]
[1755905816557,0.06,200.09,200.08,23.5743856]
[1755905816761,0.06,200.09,200.08,26.56532545]
[1755905817957,0.06,200.09,200.08,17.97654768]
[1755905818252,0.06,200.09,200.08,21.6243356]
[1755905818830,0.06,200.09,200.08,18.02654768]
[1755905819034,0.06,200.09,200.08,21.6243356]
[1755905822568,0.06,200.09,200.08,18.02654768]
[1755905822743,0.06,200.09,200.08,20.9043356]
[1755905823552,0.06,200.09,200.08,21.6243356]
[1755905824054,0.06,200.09,200.08,17.91338193]
[1755905824260,0.06,200.09,200.08,21.62973934]
[1755905826158,0.06,200.09,200.08,18.03195142]
[1755905826481,0.06,200.09,200.08,21.62973934]
[1755905826657,0.06,200.09,200.08,17.31195142]
[1755905826857,0.06,200.09,200.08,20.90973934]
[1755905827060,0.77,200.09,200.08,3.71635741]
[1755905830399,0.06,200.09,200.08,7.31414533]
[1755905830610,0.06,200.09,200.08,8.03414533]
[1755905830770,0.06,200.09,200.08,3.71635741]
[1755905831110,0.06,200.09,200.08,7.31414533]
[1755905832163,0.06,200.09,200.08,8.03414533]
[1755905832790,0.06,200.09,200.08,7.31414533]
[1755905833207,0.06,200.09,200.08,3.59778792]
[1755905833367,0.06,200.09,200.08,7.31773294]
[1755905834294,0.06,200.09,200.08,3.71994502]
[1755905834473,0.06,200.09,200.08,4.43994502]
[1755905836693,0.06,200.09,200.08,3.71994502]
[1755905836999,0.06,200.09,200.08,4.43994502]
[1755905838392,0.06,200.09,200.08,8.03773294]
[1755905839099,0.06,200.09,200.08,4.43994502]
[1755905839598,0.06,200.09,200.08,8.03773294]
[1755905839923,0.06,200.09,200.08,3.71994502]
[1755905840699,0.06,200.09,200.08,4.43994502]
[1755905841705,0.06,200.09,200.08,3.71994502]
[1755905842310,0.06,200.09,200.08,4.44420357]
[1755905842898,0.06,200.09,200.08,18.03979758]
[1755905843105,0.06,200.09,200.08,21.6375855]
[1755905843321,0.06,200.09,200.08,23.6379355]
[1755905848111,0.06,200.09,200.08,21.6375855]
[1755905849605,0.06,200.09,200.08,21.6675855]
[1755905850111,0.06,200.09,200.08,23.6679355]
[1755905850920,0.06,200.11,200.08,23.6679355]
[1755905851242,0.06,200.11,200.09,4.30778792]
[1755905851397,0.06,200.11,200.1,3.72594737]
[1755905852007,0.74,200.11,200.1,3.72594737]
[1755905853021,4.33778792,200.11,200.1,3.72594737]
[1755905854019,0.74,200.11,200.1,3.72594737]
[1755905854318,4.33778792,200.11,200.1,3.72594737]
[1755905858095,4.33778792,200.11,200.08,0.03]
[1755905858426,4.27778792,200.1,200.09,3.62867598]
[1755905860311,4.27778792,200.1,200.08,0.03]
[1755905860505,4.27778792,200.1,200.09,3.6289271]
[1755905860921,4.27778792,200.1,200.09,3.62873018]
[1755905861123,0.06,200.11,200.09,4.33873018]
[1755905861413,0.06,200.11,200.1,3.62873018]
[1755905861739,0.06,200.11,200.1,4.33873018]
[1755905863130,0.06,200.11,200.1,3.62873018]
[1755905864223,0.06,200.11,200.1,4.33873018]
[1755905866841,0.06,200.11,200.1,7.9365181]
[1755905867010,0.06,200.11,200.1,21.53211211]
[1755905867607,0.06,200.11,200.1,23.53226211]
[1755905868428,0.06,200.11,200.1,21.53211211]
[1755905869547,0.06,200.11,200.1,21.53727873]
[1755905869839,0.06,200.11,200.1,7.23168472]
[1755905870037,0.06,200.11,200.1,4.34392241]